bitfinex-derivatives/quotes_ETHF0:USTF0_20251117
["timestamp","ask_amount","ask_price","bid_price","bid_amount"]
[1763410981731,3.2078,2985.4,2984.3,0.54348]
[1763410981928,3.2078,2984.9,2984.2,3.2078]
[1763410982132,3.2078,2985.2,2984.7,0.5434]
[1763410982432,3.2078,2985.2,2984.9,0.54337]
[1763410982733,3.2078,2985.2,2984.8,0.54338]
[1763410983030,3.8648,2985.5,2985.1,0.54334]
[1763410983233,3.8648,2985.5,2984.6,3.2078]
[1763410983527,1.80452277,2985.6,2985.5,0.54327]
[1763410983832,0.00317925,2986.2,2986.1,0.54316]
[1763410984020,3.2078,2988.0,2986.2,0.6035]
[1763410984225,3.2078,2988.1,2987.0,3.2078]
[1763410984426,3.2078,2987.8,2987.6,0.54287]
[1763410984634,3.2078,2988.6,2987.3,3.2078]
[1763410984934,0.00502277,2988.0,2987.9,0.54283]
[1763410985226,0.00502277,2988.0,2987.8,0.54284]
[1763410985439,0.0346,2988.7,2988.6,0.5427]
[1763410985619,0.0346,2988.7,2988.4,0.54273]
[1763410985820,0.0346,2988.7,2987.4,0.00502277]
[1763410985821,3.2078,2988.5,2987.7,3.2078]
[1763410986024,0.0346,2988.7,2987.7,3.2078]
[1763410986328,0.3078,2989.5,2988.6,3.2078]
[1763410986632,0.31024772,2989.5,2989.3,0.54256]
[1763410986831,3.2078,2990.3,2989.2,3.2078]
[1763410986832,3.2078,2990.3,2989.8,0.54248]
[1763410987024,3.2078,2990.3,2988.8,1.49951349]
[1763410987025,3.2078,2989.9,2989.1,3.21282277]
[1763410987224,0.657,2989.6,2989.1,0.00502277]
[1763410987430,3.2078,2989.7,2989.1,0.00502277]
[1763410987431,3.2078,2990.0,2989.1,3.21282277]
[1763410987635,3.21282277,2990.3,2989.5,3.2078]
[1763410987933,3.2078,2990.2,2989.7,0.5425]
[1763410988135,0.00814902,2990.3,2989.5,3.21210593]
[1763410988539,3.8648,2991.1,2990.4,0.54238]
[1763410988735,3.2078,2991.1,2990.8,0.5423]
[1763410989129,3.2078,2991.1,2990.9,0.54227]
[1763410989438,3.2078,2991.9,2991.0,3.2078]
[1763410989633,0.00501354,2991.7,2991.3,0.5422]
[1763410989940,0.00501354,2991.7,2991.3,3.75]
[1763410990139,0.00501354,2991.7,2991.3,3.2078]
[1763410990526,0.00501354,2991.7,2991.6,3.2078]
[1763410990731,0.00501354,2991.7,2991.6,3.2104805]
[1763410991037,0.00501354,2991.7,2991.6,0.0026805]
[1763410991232,6.00501354,2991.7,2991.2,0.00501354]
[1763410991431,3.2078,2991.3,2990.3,3.2078]
[1763410991643,0.00501354,2991.7,2991.0,3.2078]
[1763410991842,0.657,2992.8,2991.6,3.2078]
[1763410992045,3.2078,2992.7,2991.8,0.54212]
[1763410992334,0.657,2992.8,2991.0,3.75006]
[1763410992335,0.657,2992.0,2991.0,3.75006]
[1763410992542,3.2078,2991.3,2990.6,3.2078]
[1763410992741,0.00404155,2991.3,2991.2,3.2078]
[1763410993329,0.657,2991.2,2990.7,0.00501354]
[1763410993538,3.2078,2990.8,2989.2,5.9228]
[1763410993845,3.2078,2989.6,2988.9,0.54264]
[1763410994034,3.2078,2990.2,2989.1,3.2078]
[1763410994436,3.2078,2989.9,2989.1,0.00324562]
[1763410994633,0.00501354,2989.9,2989.5,3.2078]
[1763410995033,0.00501354,2989.9,2989.4,0.00501354]
[1763410995233,0.05518429,2989.7,2989.4,0.00501354]
[1763410996235,0.00501354,2989.9,2989.4,0.00501354]
[1763410996236,0.05518429,2989.6,2989.4,0.00501354]
[1763410996640,0.71218429,2989.6,2989.4,0.00501354]
[1763410996839,0.71218429,2989.6,2988.3,3.2078]
[1763410997034,3.2078,2989.0,2988.3,3.2078]
[1763410997246,0.00501354,2989.9,2988.7,3.15261571]
[1763410997247,3.2078,2989.8,2988.7,3.15261571]
[1763410997544,0.25309665,2991.7,2988.0,0.5756]
[1763410997545,3.2078,2990.3,2989.5,3.2078]
[1763410997744,3.2078,2990.3,2989.2,3.2078]
[1763410998038,3.2078,2989.9,2989.5,0.00501354]
[1763410998439,0.00501354,2990.0,2989.5,0.00501354]
[1763410998440,3.2078,2989.6,2989.5,0.00501354]
[1763410998950,0.00501354,2990.0,2989.5,0.54754354]
[1763410999242,0.00501354,2990.0,2989.6,0.54252]
[1763410999544,0.00501354,2990.0,2989.5,0.00501354]
[1763410999741,3.2078,2990.8,2990.3,0.54239]
[1763410999950,3.2078,2991.4,2990.4,3.2078]
[1763411000139,3.2078,2991.1,2990.4,3.2078]
[1763411000343,3.2078,2991.1,2990.0,3.2078]
[1763411000538,3.2078,2991.1,2990.3,3.2078]
[1763411000740,0.657,2992.0,2991.0,3.2078]
[1763411000741,3.2078,2992.0,2991.0,3.2078]
[1763411000946,3.2078,2992.5,2991.7,3.2078]
[1763411001141,0.00501354,2991.8,2991.7,3.2103788]
[1763411001342,3.8648,2992.8,2991.7,3.2103788]
[1763411001343,3.8648,2992.8,2992.1,0.54207]
[1763411001645,3.2078,2993.1,2992.3,3.2078]
[1763411001850,0.652,2993.6,2991.7,3.58993734]
[1763411001851,3.2078,2992.7,2992.2,0.54205]
[1763411002037,3.2078,2993.1,2992.2,3.2078]
[1763411002239,0.00305674,2993.1,2992.9,0.54192]
[1763411002437,0.00305674,2993.1,2992.9,3.74972]
[1763411002845,3.2078,2993.9,2992.9,3.2078]
[1763411003240,3.2078,2993.6,2992.9,3.2078]
[1763411003539,3.2078,2993.9,2992.9,3.2078]
[1763411003847,0.652,2994.4,2993.0,3.2078]
[1763411003848,0.00501354,2993.6,2993.0,3.2078]
[1763411004038,0.00501354,2993.6,2993.4,0.54182]
[1763411004549,3.2078,2995.0,2994.0,0.54172]
[1763411004749,3.2078,2995.0,2993.3,3.2078]
[1763411004750,3.2078,2994.7,2993.7,3.2078]
[1763411004941,3.2078,2994.7,2993.4,0.3959]
[1763411004942,3.2078,2994.8,2994.1,3.7495]
[1763411005248,3.2078,2994.8,2993.8,3.2078]
[1763411005438,0.00501354,2994.4,2994.0,3.2078]
[1763411005640,3.2078,2994.1,2993.8,0.00295124]
[1763411005855,3.2078,2994.1,2992.5,3.2078]
[1763411006151,3.2078,2993.7,2992.7,0.54195]
[1763411006337,3.2078,2993.9,2993.3,0.54184]
[1763411006545,3.8598,2994.3,2993.7,0.54177]
[1763411006742,0.652,2994.3,2993.7,0.55053508]
[1763411006943,0.00501354,2994.4,2993.7,3.21657508]
[1763411007137,3.2078,2994.3,2993.7,3.21657508]
[1763411007343,3.2078,2994.3,2994.0,0.54172]
[1763411007538,3.2078,2994.3,2993.7,3.21657508]
[1763411007539,3.2078,2994.3,2993.7,0.00877508]
[1763411007751,3.2078,2994.0,2993.7,0.00877508]
[1763411008353,3.8006,2994.3,2993.7,0.00877508]
[1763411008656,3.2078,2994.0,2993.1,3.2078]
[1763411008850,3.2078,2993.3,2992.3,3.2078]
[1763411009047,3.2078,2993.8,2992.9,3.2078]
[1763411009244,3.2078,2993.8,2993.2,0.54187]
[1763411009853,0.00501354,2993.8,2993.3,3.2078]
[1763411010047,0.00501354,2993.8,2993.2,0.00892126]
[1763411010248,3.21281354,2993.8,2993.3,0.54185]
[1763411010443,3.2078,2993.6,2993.2,0.00892126]
[1763411010753,3.21281354,2993.8,2993.2,0.00892126]
[1763411010951,3.21281354,2993.8,2993.3,0.54185]
[1763411011256,3.21281354,2993.8,2993.4,0.54183]
[1763411011649,3.21281354,2993.8,2993.2,0.00892126]
[1763411011843,0.5928,2993.4,2991.8,3.2078]
[1763411012048,3.2078,2992.4,2991.8,3.2078]
[1763411012549,3.2078,2992.7,2992.1,0.54206]
[1763411012743,3.2078,2992.7,2991.8,3.2078]
[1763411012744,3.2078,2992.7,2992.2,0.54205]
[1763411012941,3.21050835,2992.7,2992.2,0.55052889]
[1763411013143,3.2078,2992.4,2992.2,0.00847889]
[1763411013546,0.00270835,2992.7,2992.2,0.00847889]
[1763411013749,3.2078,2992.3,2992.2,0.00847889]
[1763411014656,0.5928,2992.5,2991.9,0.5421]
[1763411014953,3.2078,2992.2,2992.0,0.54209]
[1763411015150,3.2078,2992.2,2991.6,3.2078]
[1763411015355,3.2078,2992.2,2991.9,0.5421]
[1763411015555,3.2078,2992.2,2991.9,0.54478853]
[1763411015855,3.2078,2992.2,2991.4,0.54219]
[1763411016051,3.2078,2992.2,2991.3,3.2078]
[1763411016250,3.2078,2992.2,2990.3,0.25791827]
[1763411016251,0.00501354,2992.3,2992.0,3.2078]
[1763411016449,0.00501354,2992.3,2991.7,3.2078]
[1763411016756,0.00501354,2992.3,2990.7,0.6043]
[1763411016757,0.00501354,2992.3,2992.0,0.54209]
[1763411016952,0.00501354,2992.3,2990.7,1.50031349]
[1763411016953,0.00501354,2992.3,2991.9,0.5421]
[1763411017161,3.2078,2992.2,2991.9,0.5421]
[1763411017352,3.2078,2992.2,2991.7,0.00370442]
[1763411017658,3.2078,2991.8,2991.7,0.00370442]
[1763411018267,3.2078,2991.8,2991.7,4.42e-06]
[1763411018450,3.2078,2992.2,2991.7,0.54212442]
[1763411018649,0.00501354,2992.3,2991.8,3.2078]
[1763411018956,0.00501354,2992.3,2992.2,0.54205]
[1763411021251,0.00501354,2992.3,2992.2,9.74985]
[1763411021456,0.00501354,2992.3,2992.2,3.74985]
[1763411022154,0.00270835,2992.7,2992.6,0.54198]
[1763411022354,0.00270835,2992.7,2992.2,9.2078]
[1763411022355,3.2078,2994.1,2993.4,0.54183]
[1763411022558,3.2078,2994.1,2993.8,0.54176]
[1763411022753,3.2078,2994.4,2993.5,3.2078]
[1763411023052,0.652,2995.2,2993.2,3.2078]
[1763411023053,3.2078,2993.9,2993.2,3.2078]
[1763411023258,0.00501354,2993.8,2993.5,0.54181]
[1763411023459,3.21281354,2993.8,2993.3,0.00501354]
[1763411023656,3.2078,2993.4,2993.2,0.00411646]
[1763411023860,3.2078,2993.4,2992.2,0.54205]
[1763411024061,0.5928,2993.6,2991.2,0.3164]
[1763411024062,3.8006,2992.8,2992.1,3.2078]
[1763411024765,3.8006,2992.8,2992.5,0.54199]
[1763411025056,0.00501354,2993.8,2992.5,3.2078]
[1763411025057,3.2078,2993.7,2992.5,3.2078]
[1763411025368,0.00501354,2993.8,2992.7,3.74975]
[1763411025369,3.2078,2993.4,2992.7,3.74975]
[1763411025551,0.5928,2993.6,2992.9,0.54192]
[1763411025757,0.5928,2993.6,2992.7,3.2078]
[1763411025952,3.2078,2993.7,2993.5,0.5418]
[1763411026255,0.00501354,2993.8,2993.7,0.54178]
[1763411027654,0.00501354,2993.8,2993.6,3.2078]
[1763411027957,0.00501354,2993.8,2993.3,3.2078]
[1763411028151,3.2078,2993.7,2993.0,3.2078]
[1763411028356,0.5928,2993.6,2993.0,3.2078]
[1763411028557,0.5928,2993.6,2993.1,0.54189]
[1763411028952,0.00501354,2993.8,2993.7,0.54178]
[1763411029154,0.00501354,2993.8,2993.0,3.2078]
[1763411029357,0.00501354,2993.8,2992.7,3.74976]
[1763411029358,3.2078,2993.2,2992.7,3.74976]
[1763411029558,3.2078,2992.9,2992.6,0.54198]
[1763411030061,3.2078,2992.9,2992.3,3.2078]
[1763411030259,3.2078,2992.9,2992.0,4.10381349]
[1763411030459,3.2078,2992.9,2992.6,0.54198]
[1763411030658,3.2078,2992.9,2992.4,0.542]
[1763411030955,3.2078,2993.5,2993.0,0.5419]
[1763411031158,3.2078,2993.5,2992.7,3.2078]
[1763411031360,3.21281354,2993.8,2993.1,3.2078]
[1763411031662,3.21281354,2993.8,2993.5,0.5418]
[1763411031863,3.21281354,2993.8,2993.6,0.5418]
[1763411032058,3.21281354,2993.8,2992.9,0.89601349]
[1763411032255,0.5928,2993.6,2993.1,0.54189]
[1763411032452,3.2078,2993.4,2992.9,0.54191]
[1763411032652,3.2078,2993.4,2992.5,0.89601349]
[1763411032863,3.2078,2993.4,2992.4,3.2078]
[1763411033059,3.2078,2993.4,2993.0,0.5419]
[1763411033262,3.2078,2993.7,2993.0,3.2078]
[1763411034256,3.2078,2993.3,2992.6,4.10381349]
[1763411034568,0.5928,2992.8,2992.7,0.54196]
[1763411034759,3.8006,2993.6,2993.0,0.54189]
[1763411034960,0.00501354,2993.8,2993.4,3.2078]
[1763411035166,0.00501354,2993.8,2993.3,0.54183]
[1763411035465,0.5928,2993.6,2993.4,0.54183]
[1763411035654,0.5928,2993.6,2992.8,4.64573349]
[1763411035862,0.5928,2992.8,2992.5,0.89601349]
[1763411036167,0.5928,2992.8,2992.4,3.2078]
[1763411037066,3.2078,2993.3,2992.7,0.54194]
[1763411037363,3.2078,2993.3,2992.8,0.54194]
[1763411038067,3.2078,2993.3,2992.9,0.54192]
[1763411038268,3.2078,2993.3,2993.0,0.5419]
[1763411038466,3.2078,2993.3,2992.9,0.54191]
[1763411038960,0.5928,2993.6,2993.1,3.2078]
[1763411039163,0.00501354,2993.8,2993.7,0.54178]
[1763411040263,0.00501354,2993.8,2992.9,1.1998078]
[1763411040264,0.5774,2993.6,2993.4,0.54183]
[1763411040467,0.5774,2993.6,2993.5,0.54182]
[1763411040668,0.5774,2993.6,2993.2,3.2078]
[1763411040872,0.00501354,2993.8,2993.7,0.54178]
[1763411042358,3.2078,2994.9,2993.5,4.10882703]
[1763411042667,3.2078,2994.8,2994.4,0.54165]
[1763411042968,3.2078,2994.9,2994.6,0.54162]
[1763411043270,3.2078,2995.0,2994.5,0.54162]
[1763411043470,3.2078,2994.7,2993.5,0.90102703]
[1763411043666,3.2078,2993.8,2993.5,0.00501354]
[1763411043862,0.00855327,2995.0,2993.7,4.10381349]
[1763411044162,0.00855327,2995.0,2993.6,0.5781]
[1763411044163,3.2078,2996.5,2994.9,4.4076078]
[1763411044361,3.7852,2996.0,2995.4,3.74926]
[1763411044670,3.2078,2995.5,2994.8,0.89601934]
[1763411044871,3.2078,2995.8,2994.8,3.2078]
[1763411045063,0.00283083,2995.5,2995.0,0.00501354]
[1763411045259,3.21063083,2995.5,2995.0,0.00501354]
[1763411045560,3.2078,2995.4,2995.0,0.00501354]
[1763411045865,0.00283083,2995.5,2995.0,0.00501354]
[1763411045866,3.2078,2995.1,2995.0,0.00501354]
[1763411046272,0.5774,2995.2,2995.0,0.00501354]
[1763411046466,0.00283083,2995.5,2995.3,0.54147]
[1763411047068,0.00283083,2995.5,2995.2,0.5415]
[1763411047270,0.00283083,2995.5,2995.3,0.54148]
[1763411047474,3.2078,2995.4,2995.0,0.00501354]
[1763411047674,3.2078,2995.3,2995.0,0.00501354]
[1763411047868,3.2078,2995.3,2995.0,0.54655354]
[1763411048069,3.21063083,2995.5,2995.0,0.54654354]
[1763411048271,0.00283083,2995.5,2995.3,0.54148]
[1763411048474,0.00283083,2995.5,2995.3,3.74928]
[1763411048771,1.73596574,2996.8,2995.3,3.2078]
[1763411048772,3.2078,2996.0,2995.3,3.2078]
[1763411049074,3.2078,2996.6,2995.3,3.2078]
[1763411049371,3.2078,2996.6,2995.9,3.74917]
[1763411049673,0.00501354,2996.5,2996.4,0.54129]
[1763411050875,0.00501354,2996.5,2996.2,3.2078]
[1763411051075,0.00501354,2996.5,2995.6,3.2078]
[1763411051370,0.00501354,2996.5,2995.8,0.5414]
[1763411051572,0.5774,2996.0,2995.0,0.00501354]
[1763411051777,3.2078,2995.7,2995.3,0.54149]
[1763411052078,3.7852,2996.0,2995.0,3.21281354]
[1763411052264,3.2078,2995.7,2995.0,3.21281354]
[1763411052469,3.7852,2995.2,2995.0,0.00501354]
[1763411053080,6.0,2995.1,2994.1,3.2078]
[1763411053370,3.2078,2994.2,2992.6,3.2078]
[1763411053570,3.2078,2993.9,2992.9,3.2078]
[1763411053875,3.2078,2993.5,2993.3,0.54185]
[1763411054278,3.07094699,2993.8,2993.7,0.54178]
[1763411054478,3.2078,2994.8,2993.7,3.2078]
[1763411054774,3.2078,2995.1,2994.3,0.54166]
[1763411054966,3.2078,2994.7,2994.3,0.5781]
[1763411055372,3.2078,2995.0,2994.3,1.11977]
[1763411055578,3.2078,2995.0,2994.4,0.54165]
[1763411055881,3.2078,2995.0,2994.3,0.5781]
[1763411056077,3.2078,2994.6,2994.4,0.00501354]
[1763411056277,3.21281354,2994.9,2994.4,0.00501354]
[1763411056478,3.2078,2994.6,2993.5,0.89601934]
[1763411056675,3.2078,2993.6,2992.8,0.54193]
[1763411056874,3.2078,2993.3,2992.5,0.5781]
[1763411057076,3.2078,2993.0,2992.5,1.12009]
[1763411057379,3.2078,2992.7,2991.7,3.2078]
[1763411057573,3.2078,2992.4,2991.9,0.00501354]
[1763411058280,3.2078,2992.4,2992.0,0.54208]
[1763411058481,3.2078,2992.4,2992.0,0.54209]
[1763411058678,3.2078,2992.4,2991.9,0.00501354]
[1763411059086,3.2078,2992.4,2992.0,0.54208]
[1763411059280,0.00501354,2992.5,2991.9,0.00501354]
[1763411059580,0.00501354,2992.5,2992.3,0.54202]
[1763411062083,0.00501354,2992.5,2992.0,3.2078]
[1763411062385,0.00501354,2992.5,2992.3,0.54203]
[1763411063483,0.00501354,2992.5,2991.9,3.21281354]
[1763411063484,3.2078,2992.4,2991.9,3.21281354]
[1763411063784,3.2078,2992.4,2992.2,0.54204]
[1763411064486,3.2078,2992.4,2991.9,0.00501354]
[1763411064885,3.2078,2992.4,2992.2,0.54204]
[1763411065281,3.2078,2992.4,2992.3,0.54203]
[1763411065892,3.2078,2992.4,2991.9,0.00501354]
[1763411066187,3.2078,2992.2,2991.9,0.00501354]
[1763411066578,3.2078,2992.2,2992.0,0.5183]
[1763411066783,3.2078,2994.0,2992.1,4.10381934]
[1763411067089,3.2078,2994.5,2994.2,0.54167]
[1763411067286,3.2078,2994.5,2993.7,3.2078]
[1763411067483,3.2078,2994.5,2994.1,0.5417]
[1763411067891,3.21150697,2994.5,2994.1,0.00426466]
[1763411068490,3.2078,2994.2,2994.1,0.00426466]
[1763411068790,3.2078,2994.2,2993.1,3.2078]
[1763411068982,3.2078,2993.4,2992.8,0.5183]
[1763411069185,3.74964,2993.4,2992.8,0.5183]
[1763411069392,3.2078,2993.7,2993.0,3.2078]
[1763411069581,3.2078,2993.7,2993.1,0.00501354]
[1763411069782,3.2078,2993.2,2993.1,0.00501354]
[1763411070178,3.2078,2993.5,2993.1,0.00501354]
[1763411070686,3.2078,2993.2,2993.1,0.00501354]
[1763411071089,3.2078,2993.2,2992.0,0.5183]
[1763411071397,3.2078,2992.5,2991.7,3.2078]
[1763411071579,3.2078,2992.5,2991.4,3.2078]
[1763411071884,3.2078,2992.5,2991.9,3.2078]
[1763411072092,3.21281354,2992.5,2991.9,0.00310208]
[1763411072278,3.21281354,2992.5,2992.1,3.2078]
[1763411072279,0.00501354,2992.5,2992.1,3.2078]
[1763411072484,0.00501354,2992.5,2991.9,3.21090208]
[1763411073192,3.2078,2993.5,2992.2,3.2078]
[1763411073490,3.2078,2992.5,2992.0,0.5183]
[1763411073688,3.2078,2993.2,2992.2,3.2078]
[1763411073885,3.2078,2993.2,2992.0,3.7261]
[1763411074086,3.2078,2993.2,2992.3,3.2078]
[1763411074291,0.00501354,2993.0,2992.6,3.2078]
[1763411074487,0.00501354,2993.0,2992.5,0.00501354]
[1763411074698,3.21281354,2993.0,2992.5,0.00501354]
[1763411076294,0.00501354,2993.0,2992.6,3.2078]
[1763411076691,0.00501354,2993.0,2992.7,3.2078]
[1763411076894,0.00501354,2993.0,2992.5,0.00501354]
[1763411078693,3.2078,2992.6,2992.5,0.00501354]
[1763411079095,0.00501354,2993.0,2992.5,0.00501354]
[1763411079409,3.21281354,2993.0,2992.5,0.00501354]
[1763411079700,3.2078,2994.1,2992.9,0.89601934]
[1763411079898,3.2078,2994.1,2993.2,3.2078]
[1763411080197,3.2078,2994.2,2993.3,3.2078]
[1763411080588,3.2078,2994.1,2993.3,3.2078]
[1763411080895,0.00501354,2994.0,2993.3,3.2078]
[1763411081088,0.00501354,2994.0,2993.6,3.2078]
[1763411081289,0.00501354,2994.0,2993.2,3.2078]
[1763411081485,0.00501354,2994.0,2993.5,3.2078]
[1763411081993,0.00501354,2994.0,2993.6,0.5183]
[1763411082305,0.00501354,2994.0,2993.9,3.2078]
[1763411082892,0.00370697,2994.5,2993.9,4.66084101]
[1763411083098,3.2078,2995.4,2994.4,4.9259078]
[1763411083297,3.7852,2996.0,2994.9,3.2078]
[1763411083498,3.2078,2995.7,2994.9,3.2078]
[1763411083697,3.2078,2995.7,2994.6,1.1998078]
[1763411083698,3.2078,2995.1,2994.7,0.89646832]
[1763411083901,0.00501354,2995.2,2994.6,3.21281354]
[1763411084295,0.00894218,2995.2,2994.6,3.21584967]
[1763411084491,0.00894218,2995.2,2994.9,3.2078]
[1763411084998,0.00894218,2995.2,2995.1,3.2078]
[1763411085195,0.00894218,2995.2,2994.9,3.2078]
[1763411085898,0.00894218,2995.2,2994.9,4.10426832]
[1763411086297,0.5488,2996.8,2995.1,0.89646832]
[1763411086298,3.2078,2996.3,2995.1,0.89646832]
[1763411086500,3.2078,2996.3,2995.6,3.2078]
[1763411086802,0.5488,2996.8,2995.9,3.2078]
[1763411087102,3.2078,2996.7,2995.9,3.2078]
[1763411087401,0.5414,2995.8,2995.0,3.2078]
[1763411087807,3.7566,2996.0,2995.0,3.2078]
[1763411087808,0.5414,2995.9,2995.0,3.2078]
[1763411087989,3.74922,2995.7,2995.0,3.2078]
[1763411088190,3.2078,2995.7,2995.0,3.2078]
[1763411088905,0.5414,2995.8,2995.0,3.2078]
[1763411089107,3.2078,2995.9,2995.0,3.2078]
[1763411089405,3.2078,2995.9,2995.3,3.2078]
[1763411089898,3.2078,2995.8,2995.0,3.2078]
[1763411090098,0.54148,2995.4,2994.7,3.2078]
[1763411090300,0.54151,2995.2,2994.7,3.2078]
[1763411090502,0.54159,2994.8,2994.6,0.00804967]
[1763411090703,0.00501354,2995.0,2994.6,0.00804967]
[1763411090998,0.54168,2994.3,2993.8,3.2078]
[1763411091393,3.2078,2994.4,2993.8,3.2078]
[1763411091597,3.74946,2994.4,2993.8,3.2078]
[1763411091791,0.00501354,2995.0,2993.1,0.89646832]
[1763411091792,3.2078,2994.8,2994.1,3.2078]
[1763411092104,3.2078,2994.5,2994.2,0.00501354]
[1763411092307,3.74945,2994.5,2994.2,0.00501354]
[1763411092505,3.74944,2994.5,2994.2,0.00501354]
[1763411092701,0.54166,2994.4,2994.2,0.00501354]
[1763411092909,3.2078,2994.3,2994.2,0.00501354]
[1763411093097,0.54487254,2994.8,2994.2,0.00501354]
[1763411093098,3.75267254,2994.8,2994.2,0.00501354]
[1763411093300,0.5416,2994.7,2994.2,0.00501354]
[1763411093805,0.54167,2994.3,2994.2,0.00501354]
[1763411094197,3.2078,2994.4,2994.2,0.00501354]
[1763411094405,3.74945,2994.4,2994.2,0.00501354]
[1763411094707,3.2078,2994.4,2994.2,0.00501354]
[1763411094906,3.74947,2994.3,2994.2,0.00501354]
[1763411096011,3.2078,2994.3,2994.2,0.00501354]
[1763411096309,3.74947,2994.3,2994.2,0.00501354]
[1763411097007,0.54182,2993.5,2993.0,3.2078]
[1763411097597,3.2078,2993.6,2993.0,3.2078]
[1763411097803,0.54181,2993.6,2993.0,3.2078]
[1763411098006,3.2078,2993.7,2993.0,3.21530998]
[1763411098211,0.54183,2993.5,2993.0,3.21530998]
[1763411098512,0.54182,2993.5,2993.0,3.21530998]
[1763411099010,3.2078,2993.7,2993.0,0.00750998]
[1763411099209,0.475,2994.6,2993.0,0.00750998]
[1763411099210,0.54182,2993.5,2993.0,0.00750998]
[1763411099407,3.2078,2993.3,2993.0,0.00750998]
[1763411099912,3.74965,2993.3,2993.0,0.00750998]
[1763411100101,0.00501354,2993.4,2993.0,0.00750998]
[1763411100301,3.2078,2993.3,2993.0,0.00750998]
[1763411100508,0.00501354,2993.4,2993.0,0.00750998]
[1763411100706,3.2078,2993.3,2993.0,0.00750998]
[1763411100902,0.00501354,2993.4,2993.0,0.00750998]
[1763411101311,0.00501354,2993.4,2993.0,3.21530998]
[1763411103111,0.54188,2993.2,2993.0,3.21530998]
[1763411103312,3.2078,2993.1,2992.2,0.89646832]
[1763411103612,0.54193,2992.9,2992.1,3.2078]
[1763411104110,3.2078,2993.1,2992.1,3.2078]
[1763411104409,0.00501354,2993.4,2992.1,3.2078]
[1763411104410,3.2078,2992.8,2992.3,0.00501354]
[1763411104906,3.74976,2992.8,2992.3,0.00501354]
[1763411105110,3.2078,2992.8,2992.3,0.00501354]
[1763411105306,0.54196,2992.7,2992.3,0.00501354]
[1763411105505,0.00378526,2992.7,2992.3,0.00501354]
[1763411106114,3.2078,2992.5,2992.3,0.00501354]
[1763411106412,0.54202,2992.4,2992.3,0.00501354]
[1763411106606,3.2078,2992.5,2992.3,0.00501354]
[1763411106802,0.54202,2992.4,2992.3,0.00501354]
[1763411107509,3.2078,2992.5,2992.3,0.00501354]
[1763411107714,3.74981,2992.5,2992.3,0.00501354]
[1763411108015,3.2078,2992.5,2992.3,0.00501354]
[1763411108212,3.6955,2992.5,2992.1,0.00280274]
[1763411108512,3.2078,2992.2,2992.1,0.00280274]
[1763411108702,3.74985,2992.2,2992.1,0.00280274]
[1763411109103,3.2078,2993.7,2992.2,3.3416]
[1763411109305,1.15856574,2994.2,2993.3,3.2078]
[1763411109505,3.2078,2994.6,2993.9,3.2078]
[1763411109708,3.2078,2994.6,2992.8,2.37445782]
[1763411109709,0.54155,2995.0,2994.5,3.2078]
[1763411110002,0.96799,2995.3,2994.5,3.2078]
[1763411110317,0.00501354,2995.2,2995.1,3.2078]
[1763411110711,0.4877,2996.0,2995.1,9.2078]
[1763411110921,0.4877,2996.0,2995.9,3.2078]
[1763411111109,0.54128,2996.5,2995.9,3.2078]
[1763411111305,0.5321,2996.7,2996.2,3.2078]
[1763411111510,1.07335,2996.7,2996.2,3.2078]
[1763411111720,0.54126,2996.6,2996.2,3.21281354]
[1763411111903,0.5413,2996.4,2996.2,3.21281354]
[1763411112103,3.2078,2996.3,2996.2,1.354e-05]
[1763411112316,1.07347,2996.0,2995.4,3.2078]
[1763411112517,1.07347,2996.0,2995.7,3.2078]
[1763411112713,0.54139,2995.9,2995.7,3.2078]
[1763411112923,0.5321,2996.0,2995.7,3.2078]
[1763411113219,0.54146,2995.5,2995.3,3.2078]
[1763411113410,0.54141,2995.8,2995.3,3.2078]
[1763411113612,3.74923,2995.7,2995.1,3.21281354]
[1763411113906,0.5321,2995.2,2995.1,0.00501354]
[1763411114109,0.54157,2994.9,2994.7,3.2078]
[1763411114315,0.54154,2995.1,2994.7,3.2078]
[1763411114514,0.54143,2995.7,2995.0,3.2078]
[1763411114820,0.5321,2996.0,2995.3,3.2078]
[1763411115020,0.00501354,2995.9,2995.8,3.2078]
[1763411115315,0.00501354,2995.9,2995.5,3.2078]
[1763411115517,0.54640354,2995.9,2995.5,3.2078]
[1763411115820,0.00501354,2995.9,2995.5,3.2078]
[1763411116016,0.00501354,2995.9,2995.8,3.2078]
[1763411118020,1.07707753,2996.7,2995.8,3.2078]
[1763411118021,0.00373753,2996.7,2995.8,12.5454]
[1763411118319,0.00373753,2996.7,2996.5,3.2078]
[1763411118713,0.5321,2997.4,2996.5,3.2078]
[1763411118916,3.15006912,2998.4,2997.3,3.2078]
[1763411118917,3.2078,2998.2,2997.3,3.2078]
[1763411119111,0.00500509,2998.0,2997.3,3.2078]
[1763411119319,0.54103,2997.9,2997.3,3.2078]
[1763411119521,0.00500509,2998.0,2997.3,3.2078]
[1763411119815,0.54106,2997.8,2997.3,3.21162008]
[1763411120020,3.2078,2997.9,2997.3,3.21162008]
[1763411120021,0.5231,2997.6,2997.3,3.21162008]
[1763411120220,0.5231,2997.6,2997.3,0.00382008]
[1763411120221,0.5411,2997.5,2997.3,0.00382008]
[1763411120915,0.00738249,2998.0,2997.3,0.00382008]
[1763411121116,3.2424,2998.7,2997.3,0.00382008]
[1763411121117,0.0346,2998.7,2997.9,3.2078]
[1763411121316,0.0346,2998.7,2998.6,3.2078]
[1763411122111,0.03735873,2998.7,2998.6,3.2078]
[1763411122518,0.16095194,2999.6,2998.7,9.3344]
[1763411122824,0.16095194,2999.6,2998.4,0.00500509]
[1763411122825,0.16095194,2999.6,2999.3,3.2078]
[1763411123312,1.15856574,3002.2,2999.3,3.2078]
[1763411123313,3.2078,3000.8,2999.4,6.0]
[1763411123516,3.2078,3002.3,3000.7,3.2078]
[1763411123715,0.5401,3003.1,3001.6,3.2078]
[1763411123917,0.00500509,3001.8,3000.2,0.89646832]
[1763411124218,0.00500509,3001.8,3001.7,3.2078]